fUSD/lending_fUSD_20250708
["ID","MTS","AMOUNT","RATE_DAILY","PERIOD"]
[370311245,1751947841852,-584.96,0.00030136,7]
[370311247,1751947841862,-460.0,0.00030136,7]
[370311249,1751947841871,-460.0,0.00030136,7]
[370311251,1751947841881,-460.0,0.00030136,7]
[370311253,1751947841891,-460.0,0.00030136,7]
[370311255,1751947841901,-490.0,0.00030136,7]
[370311257,1751947841911,-460.0,0.00030136,7]
[370311259,1751947841920,-460.0,0.00030136,7]
[370311261,1751947841930,-460.0,0.00030136,7]
[370311263,1751947841939,-490.0,0.00030136,7]
[370311265,1751947841948,-460.0,0.00030136,7]
[370311267,1751947841958,-460.0,0.00030136,7]
[370311269,1751947841968,-603.6,0.00030136,7]
[370311271,1751947841977,-460.0,0.00030136,7]
[370311273,1751947841986,-460.0,0.00030136,7]
[370311275,1751947841996,-460.0,0.00030136,7]
[370311277,1751947842005,-263.01488546,0.00030136,7]
[370311278,1751947842014,-490.0,0.00030136,7]
[370311280,1751947842023,-460.0,0.00030136,7]
[370311282,1751947842033,-460.0,0.00030136,7]
[370311285,1751947842042,-460.0,0.00030136,7]
[370311286,1751947842051,-460.0,0.00030136,7]
[370311288,1751947842061,-589.76,0.00030136,7]
[370311290,1751947842070,-460.0,0.00030136,7]
[370311292,1751947842080,-460.0,0.00030136,7]
[370311295,1751947842089,-460.0,0.00030136,7]
[370311296,1751947842098,-653.29,0.00030136,7]
[370311298,1751947842107,-493.69529678,0.00030136,7]
[370311300,1751947842116,-460.0,0.00030136,7]
[370311302,1751947842125,-460.0,0.00030136,7]
[370311304,1751947842134,-460.0,0.00030136,7]
[370311306,1751947842147,-490.0,0.00030136,7]
[370311308,1751947842156,-521.8186175,0.00030136,7]
[370311310,1751947842165,-460.0,0.00030136,7]
[370311312,1751947842174,-460.0,0.00030136,7]
[370311314,1751947842184,-768.22,0.00030136,7]
[370311316,1751947842193,-498.12811821,0.00030136,7]
[370311318,1751947842202,-460.0,0.00030136,7]
[370311320,1751947842213,-460.0,0.00030136,7]
[370311322,1751947842222,-460.0,0.00030136,7]
[370311324,1751947842231,-460.0,0.00030136,7]
[370311326,1751947842240,-460.0,0.00030136,7]
[370311328,1751947842250,-460.0,0.00030136,7]
[370311330,1751947842259,-460.0,0.00030136,7]
[370311332,1751947842268,-460.0,0.00030136,7]
[370311334,1751947842277,-490.0,0.00030136,7]
[370311336,1751947842287,-460.0,0.00030136,7]
[370311337,1751947842297,-737.73,0.00030136,7]
[370311340,1751947842306,-460.0,0.00030136,7]
[370311341,1751947842316,-460.0,0.00030136,7]
[370311343,1751947842325,-497.0024707,0.00030136,7]
[370311346,1751947842335,-500.0,0.00030136,7]
[370311347,1751947842344,-500.0,0.00030136,7]
[370311350,1751947842353,-460.0,0.00030136,7]
[370311351,1751947842363,-460.0,0.00030136,7]
[370311353,1751947842372,-460.0,0.00030136,7]
[370311355,1751947842382,-476.65,0.00030136,7]
[370311357,1751947842391,-490.0,0.00030136,7]
[370311359,1751947842401,-460.0,0.00030136,7]
[370311361,1751947842410,-460.0,0.00030136,7]
[370311363,1751947842420,-716.44,0.00030136,7]
[370311385,1751947842639,-460.0,0.00030136,7]
[370311386,1751947842649,-460.0,0.00030136,7]
[370311387,1751947842660,-265.54203112,0.00030136,7]
[370311388,1751947842669,-513.02,0.00030136,7]
[370311389,1751947842679,-173.398108,0.00030136,7]
[370311390,1751947842689,-299.003619,0.00030136,7]
[370311391,1751947842698,-517.84,0.00030136,7]
[370311392,1751947842707,-460.0,0.00030136,7]
[370311393,1751947842717,-264.97378,0.00030136,7]
[370311394,1751947842726,-460.0,0.00030136,7]
[370311395,1751947842735,-367.757303,0.00030136,7]
[370311396,1751947842744,-180.3,0.00030136,7]
[370311398,1751947842754,-620.86,0.00030136,7]
[370311400,1751947842764,-460.0,0.00030136,7]
[370311402,1751947842777,-277.1,0.00030136,7]
[370311404,1751947842787,-460.0,0.00030136,7]
[370311406,1751947842796,-460.0,0.00030136,7]
[370311408,1751947842805,-460.0,0.00030136,7]
[370311410,1751947842815,-294.52,0.00030136,7]
[370311412,1751947842824,-460.0,0.00030136,7]
[370311414,1751947842833,-460.0,0.00030136,7]
[370311416,1751947842843,-460.0,0.00030136,7]
[370311418,1751947842852,-460.0,0.00030136,7]
[370311420,1751947842862,-814.5,0.00030136,7]
[370311422,1751947842871,-660.49,0.00030136,7]
[370311424,1751947842881,-460.0,0.00030136,7]
[370311426,1751947842890,-460.0,0.00030136,7]
[370311428,1751947842900,-460.0,0.00030136,7]
[370311430,1751947842910,-460.0,0.00030136,7]
[370311432,1751947842919,-460.0,0.00030136,7]
[370311434,1751947842929,-587.67,0.00030136,7]
[370311436,1751947842939,-460.0,0.00030136,7]
[370311438,1751947842948,-460.0,0.00030136,7]
[370311440,1751947842958,-460.0,0.00030136,7]
[370311442,1751947842968,-460.0,0.00030136,7]
[370311445,1751947842978,-460.0,0.00030136,7]
[370311448,1751947842988,-460.0,0.00030136,7]
[370311451,1751947842998,-450.0,0.00030136,7]
[370311454,1751947843008,-594.22,0.00030136,7]
[370311457,1751947843018,-460.0,0.00030136,7]
[370311461,1751947843028,-460.0,0.00030136,7]
[370311464,1751947843039,-460.0,0.00030136,7]
[370311467,1751947843048,-493.02821906,0.00030136,7]
[370311469,1751947843057,-460.0,0.00030136,7]
[370311474,1751947843068,-641.95,0.00030136,7]
[370311477,1751947843078,-460.0,0.00030136,7]
[370311480,1751947843087,-460.0,0.00030136,7]
[370311482,1751947843096,-460.0,0.00030136,7]
[370311484,1751947843106,-1040.48,0.00030136,7]
[370311487,1751947843116,-460.0,0.00030136,7]
[370311489,1751947843126,-460.0,0.00030136,7]
[370311491,1751947843135,-460.0,0.00030136,7]
[370311493,1751947843148,-819.36,0.00030136,7]
[370311496,1751947843157,-460.0,0.00030136,7]
[370311498,1751947843166,-460.0,0.00030136,7]
[370311500,1751947843176,-460.0,0.00030136,7]
[370311502,1751947843186,-460.0,0.00030136,7]
[370311503,1751947843196,-460.0,0.00030136,7]
[370311505,1751947843206,-460.0,0.00030136,7]
[370311507,1751947843216,-460.0,0.00030136,7]
[370311510,1751947843227,-460.0,0.00030136,7]
[370311512,1751947843236,-500.0,0.00030136,7]
[370311514,1751947843246,-500.0,0.00030136,7]
[370311516,1751947843255,-686.74,0.00030136,7]
[370311518,1751947843264,-500.0,0.00030136,7]
[370311520,1751947843274,-500.0,0.00030136,7]
[370311522,1751947843286,-460.0,0.00030136,7]
[370311524,1751947843296,-156.46556368,0.00030136,7]
[370311527,1751947843305,-460.0,0.00030136,7]
[370311529,1751947843314,-460.0,0.00030136,7]
[370311532,1751947843324,-460.0,0.00030136,7]
[370311535,1751947843333,-460.0,0.00030136,7]
[370311537,1751947843343,-550.93,0.00030136,7]
[370311539,1751947843352,-460.0,0.00030136,7]
[370311541,1751947843362,-460.0,0.00030136,7]
[370311543,1751947843371,-460.0,0.00030136,7]
[370311545,1751947843381,-1625.32,0.00030136,7]
[370311547,1751947843390,-460.0,0.00030136,7]
[370311549,1751947843400,-545.64,0.00030136,7]
[370311550,1751947843409,-460.0,0.00030136,7]
[370311552,1751947843419,-460.0,0.00030136,7]
[370311555,1751947843429,-460.0,0.00030136,7]
[370311557,1751947843438,-460.0,0.00030136,7]
[370311559,1751947843448,-633.47,0.00030136,7]
[370311561,1751947843458,-460.0,0.00030136,7]
[370311563,1751947843468,-460.0,0.00030136,7]
[370311565,1751947843477,-460.0,0.00030136,7]
[370311567,1751947843486,-473.29039504,0.00030136,7]
[370311569,1751947843495,-516.33,0.00030136,7]
[370311571,1751947843504,-460.0,0.00030136,7]
[370311573,1751947843514,-507.18,0.00030136,7]
[370311574,1751947843524,-460.0,0.00030136,7]
[370311576,1751947843534,-460.0,0.00030136,7]
[370311578,1751947843544,-155.54192217,0.00030136,7]
[370311580,1751947843555,-460.0,0.00030136,7]
[370311582,1751947843565,-153.84,0.00030136,7]
[370311584,1751947843576,-555.28,0.00030136,7]
[370311586,1751947843585,-460.0,0.00030136,7]
[370311588,1751947843594,-460.0,0.00030136,7]
[370311590,1751947843604,-546.38,0.00030136,7]
[370311592,1751947843613,-460.0,0.00030136,7]
[370311594,1751947843622,-460.0,0.00030136,7]
[370311596,1751947843632,-460.0,0.00030136,7]
[370311598,1751947843641,-460.0,0.00030136,7]
[370311600,1751947843651,-460.0,0.00030136,7]
[370311603,1751947843661,-460.0,0.00030136,7]
[370311604,1751947843671,-460.0,0.00030136,7]
[370311607,1751947843680,-460.0,0.00030136,7]
[370311609,1751947843690,-460.0,0.00030136,7]
[370311611,1751947843699,-463.48915072,0.00030136,7]
[370311612,1751947843709,-460.0,0.00030136,7]
[370311613,1751947843719,-460.0,0.00030136,7]
[370311614,1751947843729,-460.0,0.00030136,7]
[370311615,1751947843738,-460.0,0.00030136,7]
[370311616,1751947843748,-460.0,0.00030136,7]
[370311617,1751947843757,-460.0,0.00030136,7]
[370311618,1751947843766,-460.0,0.00030136,7]
[370311619,1751947843775,-460.0,0.00030136,7]
[370311620,1751947843785,-460.0,0.00030136,7]
[370311621,1751947843794,-490.0,0.00030136,7]
[370311622,1751947843804,-295.30886549,0.00030136,7]
[370311623,1751947843814,-693.13,0.00030136,7]
[370311624,1751947843823,-460.0,0.00030136,7]
[370311625,1751947843832,-460.0,0.00030136,7]
[370311626,1751947843842,-460.0,0.00030136,7]
[370311627,1751947843851,-663.67,0.00030136,7]
[370311628,1751947843861,-460.0,0.00030136,7]
[370311629,1751947843872,-460.0,0.00030136,7]
[370311630,1751947843881,-460.0,0.00030136,7]
[370311631,1751947843890,-460.0,0.00030136,7]
[370311632,1751947843899,-460.0,0.00030136,7]
[370311633,1751947843909,-640.76,0.00030136,7]
[370311634,1751947843921,-649.61,0.00030136,7]
[370311635,1751947843931,-460.0,0.00030136,7]
[370311636,1751947843942,-520.0,0.00030136,7]
[370311637,1751947843951,-477.33,0.00030136,7]
[370311638,1751947843960,-460.0,0.00030136,7]
[370311639,1751947843970,-460.0,0.00030136,7]
[370311640,1751947843979,-536.6,0.00030136,7]
[370311641,1751947843989,-460.0,0.00030136,7]
[370311642,1751947843999,-496.36,0.00030136,7]
[370311643,1751947844009,-490.97453842,0.00030136,7]
[370311644,1751947844018,-460.0,0.00030136,7]
[370311645,1751947844028,-531.61,0.00030136,7]
[370311646,1751947844038,-460.0,0.00030136,7]
[370311647,1751947844048,-460.0,0.00030136,7]
[370311648,1751947844058,-460.0,0.00030136,7]
[370311649,1751947844068,-460.0,0.00030136,7]
[370311650,1751947844078,-460.0,0.00030136,7]
[370311651,1751947844088,-460.0,0.00030136,7]
[370311652,1751947844097,-490.0,0.00030136,7]
[370311653,1751947844107,-460.0,0.00030136,7]
[370311654,1751947844117,-636.67,0.00030136,7]
[370311655,1751947844126,-460.0,0.00030136,7]
[370311657,1751947844136,-460.0,0.00030136,7]
[370311659,1751947844150,-460.0,0.00030136,7]
[370311661,1751947844160,-460.0,0.00030136,7]
[370311663,1751947844170,-460.0,0.00030136,7]
[370311665,1751947844180,-460.0,0.00030136,7]
[370311667,1751947844190,-460.0,0.00030136,7]
[370311668,1751947844200,-460.0,0.00030136,7]
[370311669,1751947844209,-460.0,0.00030136,7]
[370311670,1751947844219,-657.69,0.00030136,7]
[370311671,1751947844229,-460.0,0.00030136,7]
[370311672,1751947844239,-635.12,0.00030136,7]
[370311673,1751947844248,-705.75,0.00030136,7]
[370311674,1751947844257,-530.12023715,0.00030136,7]
[370311675,1751947844267,-460.0,0.00030136,7]
[370311676,1751947844277,-460.0,0.00030136,7]
[370311677,1751947844286,-460.0,0.00030136,7]
[370311678,1751947844295,-500.0,0.00030136,7]
[370311679,1751947844306,-500.0,0.00030136,7]
[370311680,1751947844315,-643.46774108,0.00030136,7]
[370311681,1751947844324,-490.0,0.00030136,7]
[370311682,1751947844334,-460.0,0.00030136,7]
[370311683,1751947844344,-491.14801435,0.00030136,7]
[370311684,1751947844353,-460.0,0.00030136,7]
[370311685,1751947844363,-505.64,0.00030136,7]
[370311686,1751947844372,-524.43,0.00030136,7]
[370311687,1751947844382,-395.10327344,0.00030136,7]
[370311688,1751947844392,-460.0,0.00030136,7]
[370311689,1751947844402,-460.0,0.00030136,7]
[370311690,1751947844411,-460.0,0.00030136,7]
[370311691,1751947844421,-460.0,0.00030136,7]
[370311692,1751947844430,-460.0,0.00030136,7]
[370311693,1751947844440,-460.0,0.00030136,7]
[370311694,1751947844449,-522.31,0.00030136,7]
[370311695,1751947844459,-460.0,0.00030136,7]
[370311696,1751947844468,-460.0,0.00030136,7]
[370311697,1751947844477,-460.0,0.00030136,7]
[370311698,1751947844487,-460.0,0.00030136,7]
[370311699,1751947844496,-396.90675469,0.00030136,7]
[370311700,1751947844506,-267.02715556,0.00030136,7]
[370311701,1751947844515,-460.0,0.00030136,7]
[370311702,1751947844525,-460.0,0.00030136,7]
[370311703,1751947844535,-613.29,0.00030136,7]
[370311704,1751947844544,-460.0,0.00030136,7]
[370311705,1751947844554,-460.0,0.00030136,7]
[370311706,1751947844563,-460.0,0.00030136,7]
[370311707,1751947844573,-460.0,0.00030136,7]
[370311708,1751947844582,-564.16,0.00030136,7]
[370311709,1751947844591,-621.75,0.00030136,7]
[370311710,1751947844602,-646.24,0.00030136,7]
[370311711,1751947844611,-460.0,0.00030136,7]
[370311712,1751947844621,-460.0,0.00030136,7]
[370311713,1751947844630,-460.0,0.00030136,7]
[370311714,1751947844640,-460.0,0.00030136,7]
[370311715,1751947844649,-433.0741168,0.00030136,7]
[370311716,1751947844659,-1237.8,0.00030136,7]
[370311717,1751947844668,-460.0,0.00030136,7]
[370311718,1751947844677,-460.0,0.00030136,7]
[370311719,1751947844687,-460.0,0.00030136,7]
[370311720,1751947844696,-460.0,0.00030136,7]
[370311721,1751947844706,-460.0,0.00030136,7]
[370311722,1751947844715,-460.0,0.00030136,7]
[370311723,1751947844724,-460.0,0.00030136,7]
[370311724,1751947844734,-460.0,0.00030136,7]
[370311725,1751947844743,-490.0,0.00030136,7]
[370311726,1751947844752,-1215.64,0.00030136,7]
[370311727,1751947844762,-865.71,0.00030136,7]
[370311728,1751947844771,-460.0,0.00030136,7]
[370311729,1751947844781,-460.0,0.00030136,7]
[370311730,1751947844790,-460.0,0.00030136,7]
[370311731,1751947844800,-460.0,0.00030136,7]
[370311732,1751947844809,-460.0,0.00030136,7]
[370311733,1751947844820,-460.0,0.00030136,7]
[370311734,1751947844829,-460.0,0.00030136,7]
[370311735,1751947844839,-460.0,0.00030136,7]
[370311736,1751947844848,-1179.69,0.00030136,7]
[370311737,1751947844858,-815.4,0.00030136,7]
[370311738,1751947844868,-780.51,0.00030136,7]
[370311739,1751947844877,-460.0,0.00030136,7]
[370311740,1751947844887,-460.0,0.00030136,7]
[370311741,1751947844896,-460.0,0.00030136,7]
[370311742,1751947844905,-460.0,0.00030136,7]
[370311743,1751947844915,-460.0,0.00030136,7]
[370311744,1751947844924,-491.47124096,0.00030136,7]
[370311745,1751947844934,-352.73754047,0.00030136,7]
[370311746,1751947844943,-460.0,0.00030136,7]
[370311747,1751947844953,-608.94,0.00030136,7]
[370311748,1751947844962,-460.0,0.00030136,7]
[370311749,1751947844972,-460.0,0.00030136,7]
[370311750,1751947844983,-748.45,0.00030136,7]
[370311751,1751947844993,-583.74,0.00030136,7]
[370311752,1751947845003,-586.43,0.00030136,7]
[370311753,1751947845012,-490.0,0.00030136,7]
[370311754,1751947845022,-460.0,0.00030136,7]
[370311755,1751947845031,-674.92,0.00030136,7]
[370311756,1751947845040,-460.0,0.00030136,7]
[370311757,1751947845049,-460.0,0.00030136,7]
[370311758,1751947845059,-492.53,0.00030136,7]
[370311759,1751947845068,-460.0,0.00030136,7]
[370311760,1751947845077,-460.0,0.00030136,7]
[370311761,1751947845086,-460.0,0.00030136,7]
[370311762,1751947845095,-460.0,0.00030136,7]
[370311763,1751947845104,-490.0,0.00030136,7]
[370311764,1751947845114,-682.3,0.00030136,7]
[370311765,1751947845123,-460.0,0.00030136,7]
[370311766,1751947845133,-460.0,0.00030136,7]
[370311767,1751947845146,-460.0,0.00030136,7]
[370311768,1751947845155,-949.79,0.00030136,7]
[370311769,1751947845165,-806.23,0.00030136,7]
[370311770,1751947845174,-460.0,0.00030136,7]
[370311771,1751947845183,-490.0,0.00030136,7]
[370311772,1751947845193,-460.0,0.00030136,7]
[370311773,1751947845202,-1306.28,0.00030136,7]
[370311774,1751947845213,-2439.86,0.00030136,7]
[370311775,1751947845223,-552.41,0.00030136,7]
[370311776,1751947845233,-460.0,0.00030136,7]
[370311777,1751947845242,-460.0,0.00030136,7]
[370311778,1751947845251,-493.46780149,0.00030136,7]
[370311779,1751947845261,-515.78,0.00030136,7]
[370311780,1751947845270,-460.0,0.00030136,7]
[370311781,1751947845279,-460.0,0.00030136,7]
[370311782,1751947845289,-493.41,0.00030136,7]
[370311783,1751947845299,-460.0,0.00030136,7]
[370311784,1751947845308,-300.0,0.00030136,2]
[370311785,1751947845319,-460.0,0.00030136,7]
[370311786,1751947845328,-460.0,0.00030136,7]
[370311787,1751947845337,-460.0,0.00030136,7]
[370311788,1751947845347,-659.46,0.00030136,7]
[370311789,1751947845358,-460.0,0.00030136,7]
[370311790,1751947845367,-460.0,0.00030136,7]
[370311791,1751947845378,-460.0,0.00030136,7]
[370311792,1751947845387,-1798.93,0.00030136,7]
[370311793,1751947845397,-460.0,0.00030136,7]
[370311794,1751947845407,-466.58,0.00030136,7]
[370311795,1751947845417,-479.6,0.00030136,7]
[370311796,1751947845426,-460.0,0.00030136,7]
[370311797,1751947845436,-460.0,0.00030136,7]
[370311798,1751947845445,-549.16822668,0.00030136,7]
[370311799,1751947845455,-386.50071682,0.00030136,7]
[370311800,1751947845464,-531.91573056,0.00030136,7]
[370311801,1751947845474,-460.0,0.00030136,7]
[370311802,1751947845483,-460.0,0.00030136,7]
[370311803,1751947845492,-460.0,0.00030136,7]
[370311804,1751947845502,-460.0,0.00030136,7]
[370311805,1751947845512,-460.0,0.00030136,7]
[370311806,1751947845522,-660.07,0.00030136,7]
[370311807,1751947845531,-460.0,0.00030136,7]
[370311808,1751947845541,-460.0,0.00030136,7]
[370311809,1751947845551,-484.56,0.00030136,7]
[370311810,1751947845561,-460.0,0.00030136,7]
[370311811,1751947845571,-460.0,0.00030136,7]
[370311812,1751947845581,-460.0,0.00030136,7]
[370311813,1751947845591,-460.0,0.00030136,7]
[370311814,1751947845601,-460.0,0.00030136,7]
[370311815,1751947845611,-460.0,0.00030136,7]
[370311816,1751947845621,-460.0,0.00030136,7]
[370311817,1751947845631,-1209.76,0.00030136,7]
[370311818,1751947845640,-460.0,0.00030136,7]
[370311819,1751947845650,-567.42,0.00030136,7]
[370311820,1751947845660,-460.0,0.00030136,7]
[370311821,1751947845670,-591.57,0.00030136,7]
[370311822,1751947845679,-460.0,0.00030136,7]
[370311823,1751947845688,-460.0,0.00030136,7]
[370311824,1751947845698,-460.0,0.00030136,7]
[370311825,1751947845707,-460.0,0.00030136,7]
[370311826,1751947845717,-776.56,0.00030136,7]
[370311827,1751947845727,-460.0,0.00030136,7]
[370311828,1751947845737,-460.0,0.00030136,7]
[370311829,1751947845747,-460.0,0.00030136,7]
[370311830,1751947845756,-460.0,0.00030136,7]
[370311831,1751947845766,-460.0,0.00030136,7]
[370311832,1751947845776,-250.67457058,0.00030136,7]
[370311833,1751947845786,-460.0,0.00030136,7]
[370311834,1751947845794,-460.0,0.00030136,7]
[370311835,1751947845804,-460.0,0.00030136,7]
[370311836,1751947845814,-605.12,0.00030136,7]
[370311837,1751947845824,-460.0,0.00030136,7]
[370311838,1751947845833,-460.0,0.00030136,7]
[370311839,1751947845842,-460.0,0.00030136,7]
[370311840,1751947845851,-895.29,0.00030136,7]
[370311841,1751947845862,-460.0,0.00030136,7]
[370311842,1751947845872,-460.0,0.00030136,7]
[370311843,1751947845883,-827.18,0.00030136,7]
[370311844,1751947845892,-460.0,0.00030136,7]
[370311845,1751947845904,-460.0,0.00030136,7]
[370311846,1751947845914,-460.0,0.00030136,7]
[370311848,1751947845924,-491.75,0.00030136,7]
[370311850,1751947845933,-460.0,0.00030136,7]
[370311851,1751947845942,-460.0,0.00030136,7]
[370311852,1751947845951,-460.0,0.00030136,7]
[370311853,1751947845961,-765.54,0.00030136,7]
[370311854,1751947845970,-490.0,0.00030136,7]
[370311856,1751947845979,-460.0,0.00030136,7]
[370311857,1751947845988,-460.0,0.00030136,7]
[370311858,1751947845999,-460.0,0.00030136,7]
[370311859,1751947846008,-839.62,0.00030136,7]
[370311860,1751947846019,-460.0,0.00030136,7]
[370311861,1751947846029,-703.36,0.00030136,7]
[370311863,1751947846040,-563.45,0.00030136,7]
[370311865,1751947846049,-460.0,0.00030136,7]
[370311867,1751947846059,-1295.09,0.00030136,7]
[370311869,1751947846068,-1700.66,0.00030136,7]
[370311871,1751947846078,-526.38,0.00030136,7]
[370311873,1751947846087,-460.0,0.00030136,7]
[370311874,1751947846098,-500.0,0.00030136,7]
[370311875,1751947846108,-460.0,0.00030136,7]
[370311876,1751947846117,-460.0,0.00030136,7]
[370311877,1751947846126,-460.0,0.00030136,7]
[370311878,1751947846137,-460.0,0.00030136,7]
[370311879,1751947846148,-460.0,0.00030136,7]
[370311880,1751947846157,-460.0,0.00030136,7]
[370311881,1751947846167,-523.06,0.00030136,7]
[370311882,1751947846177,-686.33,0.00030136,7]
[370311883,1751947846187,-595.16,0.00030136,7]
[370311884,1751947846197,-6417.17,0.00030136,7]
[370311885,1751947846207,-842.72,0.00030136,7]
[370311886,1751947846219,-460.0,0.00030136,7]
[370311887,1751947846229,-460.0,0.00030136,7]
[370311888,1751947846239,-730.05,0.00030136,7]
[370311889,1751947846250,-460.0,0.00030136,7]
[370311890,1751947846260,-3008.28,0.00030136,7]
[370311891,1751947846270,-1543.68,0.00030136,7]
[370311892,1751947846279,-613.1,0.00030136,7]
[370311893,1751947846289,-460.0,0.00030136,7]
[370311894,1751947846298,-460.0,0.00030136,7]
[370311895,1751947846308,-460.0,0.00030136,7]
[370311896,1751947846317,-460.0,0.00030136,7]
[370311897,1751947846327,-580.93,0.00030136,7]
[370311898,1751947846337,-626.5,0.00030136,7]
[370311899,1751947846347,-462.06,0.00030136,7]
[370311900,1751947846356,-460.0,0.00030136,7]
[370311901,1751947846365,-1322.22,0.00030136,7]
[370311902,1751947846374,-245.50877191,0.00030136,7]
[370311903,1751947846384,-759.95,0.00030136,7]
[370311904,1751947846393,-1375.09,0.00030136,7]
[370311905,1751947846403,-460.0,0.00030136,7]
[370311906,1751947846412,-460.0,0.00030136,7]
[370311907,1751947846421,-460.0,0.00030136,7]
[370311908,1751947846431,-460.0,0.00030136,7]
[370311909,1751947846440,-550.67,0.00030136,7]
[370311910,1751947846449,-460.0,0.00030136,7]
[370311911,1751947846459,-460.0,0.00030136,7]
[370311912,1751947846469,-614.7,0.00030136,7]
[370311913,1751947846478,-460.0,0.00030136,7]
[370311914,1751947846487,-916.19,0.00030136,7]
[370311915,1751947846497,-460.0,0.00030136,7]
[370311916,1751947846506,-1122.25100741,0.00030147,2]
[370311917,1751947846516,-9393.51819159,0.00030163,2]
[370311918,1751947846525,-324.72,0.00030164,30]
[370311919,1751947846534,-500.0,0.00030173,5]
[370311920,1751947846543,-505.20001654,0.00030173,5]
[370311921,1751947846553,-157.08996957,0.00030173,5]
[370311922,1751947846562,-500.0,0.00030173,5]
[370311923,1751947846571,-500.0,0.00030173,3]
[370311924,1751947846581,-171.33123907,0.00030173,5]
[370311925,1751947846591,-534.96761657,0.00030173,5]
[370311926,1751947846600,-500.0,0.00030173,5]
[370311927,1751947846609,-500.0,0.00030173,5]
[370311928,1751947846618,-501.5789997,0.00030173,5]
[370311929,1751947846628,-511.12369571,0.00030173,5]
[370311930,1751947846638,-160.01116578,0.00030173,2]
[370311931,1751947846647,-160.01136463,0.00030173,5]
[370311932,1751947846656,-500.0,0.00030173,5]
[370311933,1751947846858,-306.15797978,0.00030173,5]
[370311934,1751947846868,-167.93323008,0.00030173,5]
[370311935,1751947846878,-500.62781756,0.00030173,5]
[370311936,1751947846887,-167.08290099,0.00030173,5]
[370311937,1751947846895,-500.0,0.00030173,5]
[370311938,1751947846905,-500.0,0.00030173,5]
[370311939,1751947846914,-500.0,0.00030173,5]
[370311940,1751947846923,-501.37063749,0.00030173,5]
[370311941,1751947846933,-500.0,0.00030173,5]
[370311942,1751947846942,-500.0,0.00030173,5]
[370311943,1751947846951,-511.70059219,0.00030173,5]
[370311944,1751947846961,-160.42232187,0.00030173,5]
[370311945,1751947846970,-158.20481875,0.00030173,5]
[370311946,1751947846980,-500.0,0.00030173,5]
[370311947,1751947846989,-591.01244059,0.00030173,5]
[370311948,1751947846999,-500.0,0.00030173,5]
[370311949,1751947847008,-502.16831195,0.00030173,5]
[370311950,1751947847017,-787.0,0.00030193,7]
[370311951,1751947847027,-3131.17273053,0.00030213,2]
[370311952,1751947847037,-2943.723181,0.00030223,16]
[370311953,1751947847047,-150.0,0.0003024,2]
[370311954,1751947847057,-1179.0,0.00030262,2]
[370311955,1751947847066,-3131.17273053,0.0003029,2]